fUSD/lending_fUSD_20250811
["ID","MTS","AMOUNT","RATE_DAILY","PERIOD"]
[378644189,1754939445183,-400.0,0.00016475,2]
[378644190,1754939445192,-400.0,0.00016475,2]
[378644191,1754939445201,-400.0,0.00016475,2]
[378644192,1754939445211,-521.6,0.00016475,2]
[378644193,1754939445220,-400.0,0.00016475,2]
[378644194,1754939445229,-400.0,0.00016475,2]
[378644195,1754939445238,-400.0,0.00016475,2]
[378644196,1754939445248,-400.0,0.00016475,2]
[378644197,1754939445256,-400.0,0.00016475,2]
[378644198,1754939445266,-400.0,0.00016475,2]
[378644199,1754939445276,-400.0,0.00016475,2]
[378644200,1754939445285,-400.0,0.00016475,2]
[378644201,1754939445294,-448.19,0.00016475,2]
[378644202,1754939445304,-400.0,0.00016475,2]
[378644203,1754939445313,-400.0,0.00016475,2]
[378644204,1754939445323,-400.0,0.00016475,2]
[378644205,1754939445335,-400.0,0.00016475,2]
[378644206,1754939445345,-400.0,0.00016475,2]
[378644207,1754939445354,-400.0,0.00016475,2]
[378644208,1754939445363,-400.0,0.00016475,2]
[378644209,1754939445372,-400.0,0.00016475,2]
[378644211,1754939445525,-511.1,0.00016475,2]
[378644212,1754939445546,-400.0,0.00016475,2]
[378644213,1754939445558,-400.0,0.00016475,2]
[378644214,1754939445568,-400.0,0.00016475,2]
[378644215,1754939445578,-400.0,0.00016475,2]
[378644216,1754939445589,-400.0,0.00016475,2]
[378644217,1754939445600,-400.0,0.00016475,2]
[378644218,1754939445611,-400.0,0.00016475,2]
[378644219,1754939445621,-684.94,0.00016475,2]
[378644220,1754939445631,-400.0,0.00016475,2]
[378644221,1754939445640,-400.0,0.00016475,2]
[378644222,1754939445651,-400.0,0.00016475,2]
[378644223,1754939445661,-400.0,0.00016475,2]
[378644224,1754939445670,-400.0,0.00016475,2]
[378644225,1754939445679,-400.0,0.00016475,2]
[378644226,1754939445689,-409.39,0.00016475,2]
[378644227,1754939445698,-413.6,0.00016475,2]
[378644228,1754939445708,-400.0,0.00016475,2]
[378644229,1754939445717,-400.0,0.00016475,2]
[378644230,1754939445727,-400.0,0.00016475,2]
[378644231,1754939445736,-400.0,0.00016475,2]
[378644232,1754939445746,-400.0,0.00016475,2]
[378644233,1754939445755,-400.0,0.00016475,2]
[378644234,1754939445764,-400.0,0.00016475,2]
[378644235,1754939445773,-400.0,0.00016475,2]
[378644236,1754939445783,-944.88,0.00016475,2]
[378644237,1754939445792,-400.0,0.00016475,2]
[378644238,1754939445801,-511.34,0.00016475,2]
[378644239,1754939445811,-400.0,0.00016475,2]
[378644240,1754939445820,-696.93,0.00016475,2]
[378644241,1754939445829,-400.0,0.00016475,2]
[378644242,1754939445839,-795.16,0.00016475,2]
[378644243,1754939445848,-520.97,0.00016475,2]
[378644244,1754939445857,-400.0,0.00016475,2]
[378644245,1754939445867,-400.0,0.00016475,2]
[378644246,1754939445876,-400.0,0.00016475,2]
[378644247,1754939445885,-400.0,0.00016475,2]
[378644248,1754939445894,-662.46,0.00016475,2]
[378644249,1754939445904,-400.0,0.00016475,2]
[378644250,1754939445913,-400.0,0.00016475,2]
[378644251,1754939445923,-400.0,0.00016475,2]
[378644252,1754939445932,-467.44,0.00016475,2]
[378644253,1754939445943,-400.0,0.00016475,2]
[378644254,1754939445952,-400.0,0.00016475,2]
[378644255,1754939445962,-400.0,0.00016475,2]
[378644256,1754939445971,-400.0,0.00016475,2]
[378644258,1754939445981,-408.67,0.00016475,2]
[378644260,1754939445991,-467.93,0.00016475,2]
[378644261,1754939446000,-400.0,0.00016475,2]
[378644262,1754939446010,-731.64,0.00016475,2]
[378644263,1754939446020,-400.0,0.00016475,2]
[378644265,1754939446030,-504.98,0.00016475,2]
[378644267,1754939446039,-1081.75,0.00016475,2]
[378644269,1754939446049,-400.0,0.00016475,2]
[378644271,1754939446058,-400.0,0.00016475,2]
[378644273,1754939446068,-1590.76,0.00016475,2]
[378644275,1754939446077,-400.0,0.00016475,2]
[378644277,1754939446088,-457.66,0.00016475,2]
[378644279,1754939446098,-510.04,0.00016475,2]
[378644281,1754939446108,-522.13,0.00016475,2]
[378644282,1754939446117,-400.0,0.00016475,2]
[378644283,1754939446126,-419.61,0.00016475,2]
[378644284,1754939446137,-1093.72,0.00016475,2]
[378644285,1754939446147,-400.0,0.00016475,2]
[378644286,1754939446156,-735.38,0.00016475,2]
[378644287,1754939446170,-400.0,0.00016475,2]
[378644288,1754939446180,-400.0,0.00016475,2]
[378644289,1754939446190,-1409.2,0.00016475,2]
[378644290,1754939446199,-400.0,0.00016475,2]
[378644291,1754939446208,-400.0,0.00016475,2]
[378644292,1754939446218,-1837.75,0.00016475,2]
[378644293,1754939446227,-400.0,0.00016475,2]
[378644294,1754939446236,-400.0,0.00016475,2]
[378644295,1754939446245,-1539.95,0.00016475,2]
[378644296,1754939446255,-400.0,0.00016475,2]
[378644297,1754939446265,-400.0,0.00016475,2]
[378644298,1754939446274,-400.0,0.00016475,2]
[378644299,1754939446283,-400.0,0.00016475,2]
[378644300,1754939446292,-400.0,0.00016475,2]
[378644301,1754939446301,-493.66,0.00016475,2]
[378644302,1754939446311,-732.52,0.00016475,2]
[378644303,1754939446320,-400.0,0.00016475,2]
[378644304,1754939446329,-400.0,0.00016475,2]
[378644305,1754939446338,-400.0,0.00016475,2]
[378644306,1754939446347,-400.0,0.00016475,2]
[378644307,1754939446356,-400.0,0.00016475,2]
[378644308,1754939446367,-400.0,0.00016475,2]
[378644309,1754939446376,-400.0,0.00016475,2]
[378644310,1754939446385,-400.0,0.00016475,2]
[378644311,1754939446395,-938.79,0.00016475,2]
[378644312,1754939446404,-400.0,0.00016475,2]
[378644313,1754939446413,-400.0,0.00016475,2]
[378644314,1754939446423,-400.0,0.00016475,2]
[378644315,1754939446432,-435.12,0.00016475,2]
[378644316,1754939446441,-793.35,0.00016475,2]
[378644317,1754939446450,-400.0,0.00016475,2]
[378644318,1754939446459,-400.0,0.00016475,2]
[378644319,1754939446470,-495.47,0.00016475,2]
[378644320,1754939446486,-1146.18,0.00016475,2]
[378644321,1754939446505,-400.0,0.00016475,2]
[378644322,1754939446515,-400.0,0.00016475,2]
[378644323,1754939446525,-400.0,0.00016475,2]
[378644324,1754939446534,-570.72,0.00016475,2]
[378644325,1754939446544,-504.63,0.00016475,2]
[378644326,1754939446553,-400.0,0.00016475,2]
[378644327,1754939446564,-400.0,0.00016475,2]
[378644328,1754939446574,-668.84,0.00016475,2]
[378644329,1754939446584,-535.72,0.00016475,2]
[378644330,1754939446593,-400.0,0.00016475,2]
[378644331,1754939446603,-409.73,0.00016475,2]
[378644332,1754939446613,-400.0,0.00016475,2]
[378644333,1754939446622,-400.0,0.00016475,2]
[378644334,1754939446632,-666.5,0.00016475,2]
[378644335,1754939446642,-519.1,0.00016475,2]
[378644336,1754939446652,-400.0,0.00016475,2]
[378644337,1754939446662,-742.55,0.00016475,2]
[378644338,1754939446671,-400.0,0.00016475,2]
[378644339,1754939446681,-400.0,0.00016475,2]
[378644340,1754939446692,-150.0,0.00016475,2]
[378644341,1754939446701,-754.04529369,0.00016476,2]
[378644342,1754939446711,-580.87,0.00016481,2]
[378644343,1754939446722,-500.0,0.00016483,2]
[378644344,1754939446732,-1432.55870195,0.00016484,2]
[378644345,1754939446741,-800.0,0.000165,6]
[378644346,1754939446751,-152.64,0.000165,2]
[378644347,1754939446762,-4479.83429294,0.00016504,2]
[378644348,1754939446772,-1432.55870195,0.00016513,2]
[378644349,1754939446785,-168.0,0.00016533,2]
[378644350,1754939446795,-1432.55870195,0.00016542,2]
[378644351,1754939446806,-150.0,0.0001655,2]
[378644352,1754939446817,-168.0,0.00016551,2]
[378644353,1754939446828,-2407.2638143,0.00016551,2]
[378644354,1754939446838,-150.0,0.00016568,2]
[378644355,1754939446849,-1432.55870195,0.00016572,2]
[378644356,1754939446859,-447.91408372,0.00016573,2]
[378644357,1754939446868,-150.0,0.00016588,2]
[378644358,1754939446879,-1700.0,0.000166,6]
[378644359,1754939446889,-1432.55870195,0.00016601,2]
[378644360,1754939446899,-5034.2662702,0.00016601,2]
[378644361,1754939446908,-18446.1285119,0.00016601,2]
[378644362,1754939446918,-2190.38,0.00016604,2]
[378644363,1754939446928,-2036.55,0.00016604,2]
[378644364,1754939446938,-1079.53,0.00016604,2]
[378644365,1754939446948,-1103.13,0.00016604,2]
[378644366,1754939446957,-812.44,0.00016604,2]
[378644367,1754939446967,-1167.33,0.00016604,2]
[378644368,1754939446976,-410.22,0.00016604,2]
[378644369,1754939446985,-884.36,0.00016604,2]
[378644370,1754939446995,-1440.84,0.00016604,2]
[378644371,1754939447004,-1747.78,0.00016604,2]
[378644372,1754939447013,-1597.63,0.00016604,2]
[378644373,1754939447023,-932.07,0.00016604,2]
[378644374,1754939447032,-1104.42,0.00016604,2]
[378644375,1754939447042,-2060.58,0.00016604,2]
[378644376,1754939447051,-1199.48,0.00016604,2]
[378644377,1754939447060,-400.72,0.00016604,2]
[378644378,1754939447070,-235933.20489881,0.00016605,2]
[378644379,1754939447496,-619.38599996,0.00016605,2]
[378644380,1754939447520,-4096.2492156,0.00016605,2]
[378644381,1754939448416,-1193.30518612,0.00016604,2]
[378644382,1754939448427,-1555.6751305,0.00016604,2]
[378644383,1754939448480,-479.04,0.00016604,2]
[378644384,1754939448533,-705.9392316,0.00016604,2]
[378644385,1754939448544,-3732.6,0.00016604,2]
[378644387,1754939465994,208.64,0.00013699,2]
[378644388,1754939549376,150.0,9.7e-05,2]
[378644389,1754939566744,502.0,0.00015006,2]
[378644390,1754939587390,380.65,0.00015639,2]
[378644393,1754939811566,150.0,0.00015594,2]
[378644394,1754939817458,174.86,0.00015594,2]
[378645649,1754939913441,156.99,0.0001568,2]
[378645650,1754939913577,156.99,0.000157,2]
[378645651,1754939913804,156.99,0.0001572,2]
[378645652,1754939914037,156.99,0.00015739,2]
[378645653,1754939914278,156.99,0.00015759,2]
[378645654,1754939914494,156.99,0.00015778,2]
[378645655,1754939914709,156.99,0.00015798,2]
[378645656,1754939914967,156.99,0.00015818,2]
[378645657,1754939915193,156.99,0.00015837,2]
[378645658,1754939925732,502.0,0.00015881,2]
[378645660,1754939975859,-302.0,0.00016064,2]
[378645661,1754939975883,-302.0,0.0001614,2]
[378645662,1754939975906,-302.0,0.00016195,2]
[378645663,1754939975929,-302.0,0.00016205,2]
[378645664,1754939975953,-250.0,0.00016288,2]
[378645665,1754939975976,-4156.0,0.0001629,2]
[378645666,1754939976000,-502.69686246,0.00016337,2]
[378645667,1754939976027,-179.52222808,0.00016337,2]
[378645668,1754939976050,-179.52222807,0.00016338,2]
[378645669,1754939976072,-302.0,0.00016356,2]
[378645670,1754939976096,-716.27935107,0.000164,2]
[378645671,1754939976119,-380.65,0.00016421,2]
[378645672,1754939976143,-716.27935097,0.00016432,2]
[378645673,1754939976167,-302.0,0.00016432,2]
[378645674,1754939976190,-325.63850715,0.00016436,2]
[378645675,1754939976214,-300.0,0.00016437,2]
[378645676,1754939976236,-1200.0,0.00016437,2]
[378645677,1754939976270,-550.0,0.00016437,2]
[378645678,1754939976292,-735.4114722,0.00016438,2]
[378645679,1754940020256,250.0,0.00015559,2]
[378645680,1754940088628,150.0,0.00015888,2]
[378645681,1754940088851,150.0,0.00015896,2]
[378645682,1754940088941,150.0,0.00015889,2]
[378645683,1754940089036,150.0,0.00015571,2]
[378645685,1754940309053,506.06,0.00015494,2]
[378645686,1754940323133,170.0,0.00015463,7]
[378645687,1754940333459,248.13,0.00015457,2]
[378645689,1754940414850,198.2,0.00013699,2]
[378645706,1754940528755,1000.0,0.00015544,2]
[378645707,1754940539358,164.41927734,0.00015986,2]
[378645725,1754940631743,-300.0,0.00016083,2]
[378645726,1754940631753,-150.0,0.00016086,2]
[378645727,1754940631763,-150.0,0.0001618,2]
[378645728,1754940631772,-150.0,0.00016197,2]
[378645729,1754940631782,-335.13124164,0.0001621,2]
[378645730,1754940631791,-150.0,0.00016296,2]
[378645731,1754940631801,-200.0,0.00016337,2]
[378645732,1754940631810,-231.28369723,0.00016337,2]
[378645733,1754940631820,-318.79484162,0.00016347,2]
[378645740,1754940632239,-3018.59797141,0.00016347,2]
[378645745,1754940632272,-259.57264843,0.00016347,2]
[378645748,1754940632293,-559.03453854,0.00016347,2]
[378645750,1754940632303,-171.08262017,0.00016375,2]
[378645752,1754940632312,-644.65141593,0.000164,2]
[378645754,1754940632322,-550.0,0.00016427,2]
[378645756,1754940632332,-1173.93229119,0.00016427,2]
[378645758,1754940632343,-26.06770881,0.00016427,2]
[378645760,1754940632353,-944.9320733,0.00016428,2]
[378645762,1754940632362,-500.0,0.00016428,2]
[378645764,1754940632372,-500.0,0.00016428,2]
[378645766,1754940632381,-600.0,0.00016428,2]
[378645768,1754940632390,-151.0,0.00016428,2]
[378645770,1754940632400,-500.0,0.00016428,2]
[378645771,1754940632409,-151.0,0.00016428,2]
[378645772,1754940632419,-500.0,0.00016428,2]
[378645773,1754940632429,-346.92554585,0.00016428,2]
[378645774,1754940632438,-151.0,0.00016428,2]
[378645775,1754940632447,-500.0,0.00016428,2]
[378645776,1754940632462,-151.0,0.00016428,2]
[378645777,1754940632471,-500.0,0.00016428,2]
[378645778,1754940632480,-151.0,0.00016428,2]
[378645779,1754940632490,-500.0,0.00016428,2]
[378645780,1754940632501,-500.0,0.00016428,2]
[378645781,1754940632511,-151.0,0.00016428,2]
[378645782,1754940632520,-500.0,0.00016428,2]
[378645783,1754940632530,-160.0,0.00016428,2]
[378645784,1754940632540,-500.0,0.00016428,2]
[378645785,1754940632549,-151.0,0.00016428,2]
[378645786,1754940632558,-500.0,0.00016428,2]
[378645787,1754940632568,-500.0,0.00016428,2]
[378645788,1754940632577,-151.0,0.00016428,2]
[378645789,1754940632587,-500.0,0.00016428,2]
[378645790,1754940632597,-500.0,0.00016428,2]
[378645791,1754940632606,-500.0,0.00016428,2]
[378645792,1754940632615,-151.0,0.00016428,2]
[378645793,1754940632625,-151.0,0.00016428,2]
[378645794,1754940632635,-500.0,0.00016428,2]
[378645795,1754940632644,-151.0,0.00016428,2]
[378645796,1754940632654,-500.0,0.00016428,2]
[378645797,1754940632663,-151.0,0.00016428,2]
[378645798,1754940632672,-500.0,0.00016428,2]
[378645799,1754940632682,-500.0,0.00016428,2]
[378645800,1754940632691,-151.0,0.00016428,2]
[378645801,1754940632701,-151.0,0.00016428,2]
[378645802,1754940632711,-500.0,0.00016428,2]
[378645803,1754940632721,-151.0,0.00016428,2]
[378645804,1754940632730,-500.0,0.00016428,2]
[378645805,1754940632739,-151.0,0.00016428,2]
[378645806,1754940632748,-500.0,0.00016428,2]
[378645807,1754940632758,-151.0,0.00016428,2]
[378645808,1754940632767,-500.0,0.00016428,2]
[378645809,1754940632776,-151.0,0.00016428,2]
[378645810,1754940632785,-500.0,0.00016428,2]
[378645811,1754940632795,-151.0,0.00016428,2]
[378645812,1754940632804,-500.0,0.00016428,2]
[378645813,1754940632814,-151.0,0.00016428,2]
[378645814,1754940632824,-500.0,0.00016428,2]
[378645815,1754940632833,-500.0,0.00016428,2]
[378645816,1754940632843,-500.0,0.00016428,2]
[378645817,1754940632853,-500.0,0.00016428,2]
[378645818,1754940632932,-500.0,0.00016428,2]
[378645819,1754940632942,-500.0,0.00016428,2]
[378645820,1754940632951,-366.10586358,0.00016428,2]
[378645821,1754940632960,-300.0,0.00016428,2]
[378645822,1754940632969,-314.71345137,0.00016428,2]
[378645823,1754940632979,-500.0,0.00016428,2]
[378645824,1754940632988,-500.0,0.00016428,2]
[378645825,1754940632997,-500.0,0.00016428,2]
[378645826,1754940633006,-500.0,0.00016428,2]
[378645827,1754940633015,-500.0,0.00016428,2]
[378645828,1754940633025,-500.0,0.00016428,2]
[378645829,1754940633036,-500.0,0.00016428,2]
[378645830,1754940633046,-302.66564744,0.00016428,2]
[378645831,1754940633055,-644.65141587,0.00016432,2]
[378645832,1754940633064,-711.63,0.00016438,2]
[378645833,1754940633073,-400.0,0.00016438,2]
[378645834,1754940633083,-1818.54,0.00016438,2]
[378645835,1754940633092,-1509.11,0.00016438,2]
[378645836,1754940633101,-1065.4,0.00016438,2]
[378645837,1754940633112,-869.72,0.00016438,2]
[378645838,1754940633121,-475.4,0.00016438,2]
[378645839,1754940633131,-503.01,0.00016438,2]
[378645840,1754940633141,-641.09,0.00016438,2]
[378645841,1754940633151,-1244.78,0.00016438,2]
[378645842,1754940633161,-756.81,0.00016438,2]
[378645843,1754940633171,-400.0,0.00016438,2]
[378645844,1754940633180,-1416.34,0.00016438,2]
[378645845,1754940633190,-594.22,0.00016438,2]
[378645846,1754940633199,-634.81,0.00016438,2]
[378645847,1754940633208,-1616.06,0.00016438,2]
[378645848,1754940633218,-400.0,0.00016438,2]
[378645849,1754940633228,-400.0,0.00016438,2]
[378645850,1754940633238,-400.0,0.00016438,2]
[378645851,1754940633249,-432.89,0.00016438,2]
[378645852,1754940633261,-1090.5,0.00016438,2]
[378645853,1754940633270,-618.99,0.00016438,2]
[378645854,1754940633279,-1645.93,0.00016438,2]
[378645855,1754940633288,-589.81,0.00016438,2]
[378645856,1754940633298,-891.86,0.00016438,2]
[378645857,1754940633308,-668.11,0.00016438,2]
[378645858,1754940633317,-477.58,0.00016438,2]
[378645859,1754940633327,-1204.87,0.00016438,2]
[378645860,1754940633337,-699.62,0.00016438,2]
[378645861,1754940633347,-1044.38,0.00016438,2]
[378645862,1754940633356,-926.92,0.00016438,2]
[378645863,1754940633366,-1903.62,0.00016438,2]
[378645864,1754940633376,-850.25,0.00016438,2]
[378645865,1754940633386,-1887.64,0.00016438,2]
[378645866,1754940633395,-400.0,0.00016438,2]
[378645867,1754940633404,-686.91,0.00016438,2]
[378645868,1754940633413,-5688.76,0.00016438,2]
[378645869,1754940633423,-737.09,0.00016438,2]
[378645870,1754940633433,-400.0,0.00016438,2]
[378645871,1754940633443,-638.51,0.00016438,2]
[378645872,1754940633455,-704.2,0.00016438,2]
[378645873,1754940633468,-522.61,0.00016438,2]
[378645874,1754940633477,-1627.3,0.00016438,2]
[378645875,1754940633486,-1698.4,0.00016438,2]
[378645876,1754940633497,-881.08,0.00016438,2]
[378645877,1754940633508,-4191.44994012,0.0001644,2]
[378645878,1754940633521,-7803.70655965,0.0001644,2]
[378645879,1754940633533,-2936.56697,0.0001644,2]
[378645880,1754940633543,-2936.56698,0.0001644,2]
[378645881,1754940633553,-2936.56697,0.0001644,2]
[378645882,1754940633563,-742.01,0.00016473,2]
[378645883,1754940633572,-517.99,0.00016473,2]
[378645884,1754940633581,-518.74,0.00016473,2]
[378645885,1754940633590,-435.07,0.00016474,2]
[378645886,1754940633599,-400.0,0.00016474,2]
[378645887,1754940633608,-400.0,0.00016474,2]
[378645888,1754940633617,-400.0,0.00016474,2]
[378645889,1754940633627,-400.0,0.00016474,2]
[378645890,1754940633636,-400.0,0.00016474,2]
[378645891,1754940633646,-400.0,0.00016474,2]
[378645892,1754940633656,-772.46,0.00016474,2]
[378645893,1754940633666,-400.0,0.00016474,2]
[378645894,1754940633676,-400.0,0.00016474,2]
[378645895,1754940633685,-400.0,0.00016474,2]
[378645896,1754940633695,-933.65,0.00016474,2]
[378645897,1754940633705,-400.0,0.00016474,2]
[378645898,1754940633714,-400.0,0.00016474,2]
[378645899,1754940633725,-400.0,0.00016474,2]
[378645900,1754940633734,-400.0,0.00016474,2]
[378645901,1754940633743,-116.75598591,0.00016474,2]
[378645902,1754940633756,-283.24401409,0.00016474,2]
[378645903,1754940633765,-400.0,0.00016474,2]
[378645904,1754940633774,-366.30848853,0.00016474,2]
[378645905,1754940633785,-33.69151147,0.00016474,2]
[378645906,1754940633795,-276.38387768,0.00016474,2]
[378645907,1754940633897,-163.70612232,0.00016474,2]
[378645908,1754940633906,-400.56,0.00016474,2]
[378645909,1754940633916,-400.0,0.00016474,2]
[378645910,1754940633925,-400.0,0.00016474,2]
[378645911,1754940633935,-474.06,0.00016474,2]
[378645912,1754940633944,-345.29641315,0.00016474,2]
[378645913,1754940633955,-54.70358685,0.00016474,2]
[378645914,1754940633964,-485.44,0.00016474,2]
[378645915,1754940633973,-400.0,0.00016474,2]
[378645916,1754940633983,-400.0,0.00016474,2]
[378645917,1754940633993,-400.0,0.00016474,2]
[378645918,1754940634002,-400.0,0.00016474,2]
[378645919,1754940634011,-400.0,0.00016474,2]
[378645920,1754940634020,-400.0,0.00016474,2]
[378645921,1754940634029,-159.8564129,0.00016474,2]
[378645922,1754940634054,-240.1435871,0.00016474,2]
[378645923,1754940634064,-400.0,0.00016474,2]
[378645924,1754940634073,-118.70464463,0.00016474,2]
[378645925,1754940634084,-281.29535537,0.00016474,2]
[378645926,1754940634093,-400.0,0.00016474,2]
[378645927,1754940634103,-400.0,0.00016474,2]
[378645928,1754940634112,-400.0,0.00016474,2]
[378645929,1754940634122,-400.0,0.00016474,2]
[378645930,1754940634131,-400.0,0.00016474,2]
[378645931,1754940634141,-315.12100901,0.00016474,2]
[378645932,1754940634153,-84.87899099,0.00016474,2]
[378645933,1754940634163,-400.0,0.00016474,2]
[378645934,1754940634173,-406.53,0.00016474,2]
[378645935,1754940634183,-400.0,0.00016474,2]
[378645936,1754940634193,-400.0,0.00016474,2]
[378645937,1754940634203,-400.0,0.00016474,2]
[378645938,1754940634212,-400.0,0.00016474,2]
[378645939,1754940634222,-400.0,0.00016474,2]
[378645940,1754940634231,-300.49856797,0.00016474,2]
[378645941,1754940634244,-99.50143203,0.00016474,2]
[378645942,1754940634253,-400.0,0.00016474,2]
[378645943,1754940634263,-220.98702131,0.00016474,2]
[378645944,1754940634299,-179.01297869,0.00016474,2]
[378645945,1754940634311,-400.0,0.00016474,2]
[378645946,1754940634320,-400.0,0.00016474,2]
[378645947,1754940634329,-400.0,0.00016474,2]
[378645948,1754940634338,-173.16963583,0.00016474,2]
[378645949,1754940634348,-400.0,0.00016474,2]
[378645950,1754940634357,-400.0,0.00016474,2]
[378645951,1754940634366,-333.04031537,0.00016474,2]
[378645952,1754940634378,-96.47968463,0.00016474,2]
[378645953,1754940634387,-567.67,0.00016474,2]
[378645954,1754940634396,-142.26615116,0.00016474,2]
[378645955,1754940634407,-257.73384884,0.00016474,2]
[378645956,1754940634416,-198.07692746,0.00016474,2]
[378645958,1754940637586,-649.52000004,0.00016438,2]
[378645959,1754940637597,-464.22999996,0.00016438,2]
[378645960,1754940637607,-201.92307254,0.00016474,2]
[378645961,1754940637616,-400.0,0.00016474,2]
[378645962,1754940637625,-400.0,0.00016474,2]
[378645963,1754940637635,-489.8,0.00016474,2]
[378645964,1754940637644,-549.05,0.00016474,2]
[378645965,1754940637654,-499.87,0.00016474,2]
[378645966,1754940637663,-400.0,0.00016474,2]
[378645967,1754940637674,-400.0,0.00016474,2]
[378645968,1754940637684,-480.48,0.00016474,2]
[378645969,1754940637694,-446.41,0.00016474,2]
[378645970,1754940637704,-400.0,0.00016474,2]
[378645971,1754940637713,-400.0,0.00016474,2]
[378645972,1754940637723,-572.46,0.00016474,2]
[378645973,1754940637732,-316.39760157,0.00016474,2]
[378645974,1754940637744,-83.60239843,0.00016474,2]
[378645975,1754940637756,-400.0,0.00016474,2]
[378645976,1754940637779,-519.36,0.00016474,2]
[378645977,1754940637800,-400.0,0.00016474,2]
[378645978,1754940637815,-400.0,0.00016474,2]
[378645979,1754940637824,-400.0,0.00016474,2]
[378645980,1754940637834,-400.0,0.00016474,2]
[378645981,1754940637843,-17.60524521,0.00016474,2]
[378645982,1754940637855,-472.43475479,0.00016474,2]
[378645983,1754940637864,-400.0,0.00016474,2]
[378645984,1754940637873,-400.0,0.00016474,2]
[378645985,1754940637882,-656.4,0.00016474,2]
[378645986,1754940637892,-382.32524521,0.00016474,2]
[378645987,1754940637950,-17.67475479,0.00016474,2]
[378645988,1754940637959,-762.03,0.00016474,2]
[378645989,1754940637968,-400.0,0.00016474,2]
[378645990,1754940637978,-481.12,0.00016474,2]
[378645991,1754940637987,-469.93117075,0.00016474,2]
[378645992,1754940637996,-634.86,0.00016474,2]
[378645993,1754940638006,-582.81,0.00016474,2]
[378645994,1754940638015,-400.0,0.00016474,2]
[378645995,1754940638024,-400.0,0.00016474,2]
[378645996,1754940638033,-441.27,0.00016474,2]
[378645997,1754940638042,-400.0,0.00016474,2]
[378645998,1754940638051,-447.96,0.00016474,2]
[378645999,1754940638060,-549.74,0.00016474,2]
[378646000,1754940638069,-411.89,0.00016474,2]
[378646001,1754940638079,-667.89,0.00016474,2]
[378646002,1754940638088,-400.0,0.00016474,2]
[378646003,1754940638097,-400.0,0.00016474,2]
[378646004,1754940638106,-436.85,0.00016474,2]
[378646005,1754940638115,-528.58,0.00016474,2]
[378646006,1754940638124,-400.0,0.00016474,2]
[378646007,1754940638134,-400.0,0.00016474,2]
[378646008,1754940638143,-535.06,0.00016474,2]
[378646009,1754940638152,-400.0,0.00016474,2]
[378646010,1754940638160,-483.94,0.00016474,2]
[378646012,1754940638169,-600.09,0.00016474,2]
[378646014,1754940638178,-400.0,0.00016474,2]
[378646016,1754940638187,-400.0,0.00016474,2]
[378646018,1754940638197,-739.22,0.00016474,2]
[378646020,1754940638206,-400.0,0.00016474,2]
[378646022,1754940638215,-531.78,0.00016474,2]
[378646024,1754940638224,-545.75,0.00016474,2]